Cogmind - Beta 13 @@@ ROGUE MODE // 2024.05.06 @ 13:25:06 Player: Gabe+Kate4EVR Result: Destroyed self with Grenade Launcher Performance ------------- Evolutions (0) 0 Regions Visited (1) 200 Robots Destroyed (13) 65 Value Destroyed (327) 327 Prototype IDs (0) 0 Alien Tech Used (0) 0 Bonus (0) 0 TOTAL SCORE: 592 Bonus ------- None Cogmind --------- Core Integrity 0/250 Matter 248/300 Energy 250/250 System Corruption 0% Temperature Cool (0) Movement Core (250) Ox4 Location -10/Materials Parts ------- > --- POWER (1) -------- Ion Engine > --- PROPULSION (2) --- (None) > --- UTILITY (2) ------ Small Storage Unit Signal Interpreter > --- WEAPON (2) ------- Small Laser Grenade Launcher > --- INVENTORY (8) ---- Ion Engine Heat Sink Heat Sink High-capacity Matter Pod (0) Grenade Launcher Grenade Launcher Grenade Launcher Peak State ------------ > --- POWER ------------ Light Nuclear Core > --- PROPULSION ------- (None) > --- UTILITY ---------- Small Storage Unit Signal Interpreter > --- WEAPON ----------- Medium Laser Assault Rifle > --- INVENTORY -------- Heat Sink Small Laser Grenade Launcher Grenade Launcher Grenade Launcher Grenade Launcher [Rating: 7] Favorites ----------- Power Light Nuclear Core Engine Ion Engine Power Core Light Nuclear Core Propulsion None Utility Small Storage Unit Storage Small Storage Unit Processor Signal Interpreter Weapon Small Laser Energy Gun Small Laser Ballistic Gun Assault Rifle Launcher Grenade Launcher Build | -11 -10 ------- Run | Yrd Mat Slots Evolved . | . . Power . | . . Propulsion . | . . Utility . | . . Weapon . | . . Parts Attached 17 | 2 15 Power 2 | . 2 Engine 1 | . 1 Core 1 | . 1 Reactor . | . . Propulsion . | . . Treads . | . . Leg . | . . Wheel . | . . Hover . | . . Flight . | . . Utility 4 | 1 3 Device . | . . Storage 3 | 1 2 Processor 1 | . 1 Hackware . | . . Protection . | . . Artifact . | . . Weapon 11 | 1 10 Energy Gun 5 | 1 4 Energy Cannon . | . . Ballistic Gun 2 | . 2 Ballistic Cannon . | . . Launcher 4 | . 4 Special Weapon . | . . Impact Weapon . | . . Slashing Weapon . | . . Piercing Weapon . | . . Special Melee Weapon . | . . Unidentified Prototypes . | . . Parts Lost 4 | . 4 Power 1 | . 1 Propulsion . | . . Utility . | . . Weapon 3 | . 3 Highest Loss Streak 2 | . 2 To Critical Strikes . | . . Average Slot Usage (%) 55 | . 55 Engine 2 | . 2 Core 5 | . 5 Storage 13 | . 13 Processor 13 | . 13 Energy Gun 12 | . 12 Ballistic Gun 2 | . 2 Launcher 3 | . 3 Naked Turns . | . . Heaviest Build 14 | 7 14 Greatest Support 3 | 3 3 Greatest Overweight (x) 4 | 2 4 Average Overweight (x) 2 | 1 2 Largest Inventory Capacity 20 | 8 20 Average Capacity 7 | 7 8 Most Carried 8 | 2 8 Average Carried 5 | 1 5 Final Capacity 8 | 8 8 Final Carried 7 | 2 7 Class Distribution -------------------- 100% | Mutant Dominant Class ---------------- Mutant | -10/Materials Resources | -11 -10 ----------- Run | Yrd Mat Matter Collected 399 | 210 189 Remotely . | . . Salvage Created 339 | . 339 Parts 32 | . 32 Haulers Intercepted . | . . Recyclers Shooed . | . . Parts Field Recycled . | . . Retrieved Matter . | . . Parts Self-Destructed . | . . Prevented . | . . Kills | -11 -10 ------- Run | Yrd Mat Combat Hostiles Destroyed 11 | . 11 Guns 5 | . 5 AOE 6 | . 6 Classes Destroyed 4 | . 4 Builder 1 | . 1 Tunneler 1 | . 1 Swarmer 3 | . 3 Grunt 8 | . 8 Best Kill Streak 4 | . 4 Combat Bots Only 4 | . 4 Max Kills in Single Turn 4 | . 4 Gunslinging . | . . Exploded 4 | . 4 Melee . | . . Uniques/NPCs Destroyed . | . . Combat | -11 -10 -------- Run | Yrd Mat Hostile Shots Fired 73 | . 73 Missed 23 | . 23 Damage Taken 676 | . 676 Core 252 | . 252 Absorbed by Shields . | . . Core Remaining (%) 100 | 100 . Volleys Fired 39 | . 39 Largest 2 | . 2 Hottest 80 | . 80 Shots Fired 61 | . 61 Gun 56 | . 56 Cannon . | . . Launcher 5 | . 5 Special . | . . Kinetic 17 | . 17 Thermal 39 | . 39 Explosive 5 | . 5 Electromagnetic . | . . Robot Hit Streak 7 | . 7 Robot Miss Streak 4 | . 4 Penetration Max . | . . Secondary Targets . | . . Shots Hit Robots 39 | . 39 Core Hits 24 | . 24 Critical Kills . | . . Critical Parts Destroyed . | . . Critical Strikes 1 | . 1 Burn 1 | . 1 Melee Attacks . | . . Impact . | . . Slashing . | . . Piercing . | . . Sneak Attacks . | . . Combat Hostiles . | . . Follow-up Attacks . | . . Damage Inflicted 825 | . 825 Guns 435 | . 435 Cannons . | . . Explosions 390 | . 390 Melee . | . . Ramming . | . . Kinetic 134 | . 134 Thermal 301 | . 301 Explosive 390 | . 390 Electromagnetic . | . . Impact . | . . Slashing . | . . Piercing . | . . Highest Corruption . | . . Average Corruption . | . . Corruption Purged . | . . Corruption Blocked . | . . Overload Shots . | . . Overflow Damage 15 | . 15 Projectiles . | . . Explosions 15 | . 15 Melee . | . . Knockbacks . | . . Impact . | . . Kinetic . | . . Secondary . | . . Self-Inflicted Damage 56 | . 56 Shots 3 | . 3 Rammed . | . . Targets Rammed . | . . Kicked . | . . Crushed . | . . Highest Temperature 99 | . 99 Average Temperature 28 | . 28 Received Heat Transfer 300 | . 300 Siege Activations . | . . Robots Corrupted . | . . Combat Hostiles . | . . Parts Fried . | . . Impact Corruptions . | . . Robots Melted . | . . Combat Hostiles . | . . Parts Melted . | . . Heat Transferred 832 | . 832 Parts Sabotaged . | . . Parts Stolen . | . . Parts Stripped . | . . Power Chain Reactions . | . . Alert | -11 -10 ------- Run | Yrd Mat Peak Influence 250 | . 250 Initial . | . . Average 53 | . 56 Maximum Alert Level 1 | . 1 Low Security (%) 90 | 100 90 Level 1 9 | . 9 Level 2 . | . . Level 3 . | . . Level 4 . | . . Level 5 . | . . High Security . | . . Max Security . | . . Squads Dispatched 3 | . 3 Investigation 2 | . 2 Extermination . | . . Reinforcement 1 | . 1 Assault . | . . Garrison . | . . Intercept . | . . Searches Triggered . | . . Construction Impeded . | . . Haulers Reinforced . | . . Active Scanning Responses . | . . Cargo Convoy Interrupts . | . . Stealth | -11 -10 --------- Run | Yrd Mat Distress Signals 1 | . 1 Communications Jammed . | . . Distress Signals . | . . Times Spotted 22 | . 22 Peak Tracking Total 8 | . 8 Tactical Retreats . | . . Traps | -11 -10 ------- Run | Yrd Mat Traps Triggered 1 | . 1 Indirectly . | . . Trap Hack Attempts . | . . Triggered . | . . Disarmed . | . . Reprogrammed . | . . Reused . | . . Traps Extracted . | . . Installed . | . . Triggered . | . . Machines | -11 -10 ---------- Run | Yrd Mat Machines Disabled . | . . Max in Single Turn . | . . Machines Repaired . | . . Machines Dismantled . | . . Machines Sabotaged . | . . Overloaded Fab Kills . | . . Hacking | -11 -10 --------- Run | Yrd Mat Machines Accessed 4 | . 4 Terminals 4 | . 4 Fabricators . | . . Repair Stations . | . . Recycling Units . | . . Scanalyzers . | . . Garrison Access . | . . Total Hacks 7 | . 7 Successful 3 | . 3 Failed 4 | . 4 Catastrophic 2 | . 2 Database Lockouts . | . . Manual 7 | . 7 Terminals 7 | . 7 Fabricators . | . . Repair Stations . | . . Recycling Units . | . . Scanalyzers . | . . Garrison Access . | . . Terminal Hacks 3 | . 3 Recycling Unit Index 1 | . 1 Unreport Threat 2 | . 2 Fabricator Hacks . | . . Repair Station Hacks . | . . Recycling Unit Hacks . | . . Scanalyzer . | . . Garrison Access Hacks . | . . Unauthorized Hacks . | . . Terminals . | . . Fabricators . | . . Repair Stations . | . . Recycling Units . | . . Scanalyzers . | . . Garrison Access . | . . Data Cores Recovered . | . . Used . | . . Hacking Detections 3 | . 3 Full Trace Events 1 | . 1 Feedback Events . | . . Feedback Blocked . | . . Robot Schematics Acquired . | . . Robots Built . | . . Authchips . | . . Time . | . . Total Robot Build Rating . | . . Part Schematics Acquired . | . . Parts Built . | . . Authchips . | . . Time . | . . Total Part Build Rating . | . . Parts Repaired . | . . Time . | . . Parts Recycled . | . . Recycled Matter . | . . Retrieved Matter . | . . Retrieved Components . | . . Parts Scanalyzed . | . . Part Schematics Acquired . | . . Parts Damaged . | . . Bothacking | -11 -10 ------------ Run | Yrd Mat Used RIF Installer . | . . Robots Hacked . | . . Non-combat . | . . Combat . | . . Robot Hacks Applied . | . . Relay Couplers Released . | . . Fabnet Peak Effective % . | . . Robots Rewired 1 | . 1 Allies Hacked . | . . Hacks Repelled . | . . Allies | -11 -10 -------- Run | Yrd Mat Total Allies 1 | . 1 Largest Group 1 | . 1 Highest-Rated Group 8 | . 8 Highest-Rated Ally 8 | . 8 Total Orders . | . . Ally Attacks 2 | . 2 Total Damage 10 | . 10 Kills . | . . Allies Corrupted . | . . Allies Melted . | . . Intel | -11 -10 ------- Run | Yrd Mat Robot Analysis Total . | . . Derelict Logs Recovered . | . . Drone Launches . | . . Drone Recoveries . | . . Exploration | -11 -10 ------------- Run | Yrd Mat Turns Passed 948 | 47 901 Spaces Moved 454 | 38 416 Core 454 | 38 416 Treads . | . . Legs . | . . Wheels . | . . Hover . | . . Flight . | . . Fastest Speed 50 | 50 50 Average Speed 175 | 111 181 Slowest Speed 250 | 150 250 Overloaded Moves . | . . Propulsion Burnouts . | . . Robots Hopped . | . . Cave-ins Triggered . | . . Exploration Rate (%) 31 | 3 60 Regions Visited 1 Branch Regions . Pre-discovered Areas . | . . Known Exits Taken . | . . Unknown Exits Taken 1 | 1 . Scrap Searched . | . . Spaces Dug . | . . Terrain Destroyed 29 | . 29 Melee . | . . Projectile . | . . AOE 29 | . 29 Terrain Rammed . | . . Walls Destroyed . | . . Machines Disabled . | . . Actions | -11 -10 --------- Run | Yrd Mat Total 543 | 41 502 Wait 16 | . 16 Move 453 | 37 416 Hop . | . . Pick Up 10 | 2 8 Fast Attach 10 | 2 8 Attach 5 | . 5 Detach 4 | . 4 Swap 2 | . 2 Drop 2 | . 2 Fire 39 | . 39 Melee . | . . Ram . | . . Kick . | . . Crush . | . . Escape Stasis . | . . Rewire 2 | . 2 Trap . | . . Miscellaneous . | . . Route ------- -11/Scrapyard -10/Materials (discovered 3 exits: [*Mat x2] / [*Min]) History --------- Turn | Location | Event 10 | -11/Scrapyard | Discovered new exit (range 15) 48 | -11/Scrapyard | Entered Materials 120 | -10/Materials | Discovered new exit (range 12) 301 | -10/Materials | Build established: Mutant 388 | -10/Materials | Discovered new exit (range 11) 403 | -10/Materials | Core integrity fell below 50% 670 | -10/Materials | Discovered new exit (range 16) 697 | -10/Materials | Core integrity fell below 20% 949 | -10/Materials | Destroyed self with Grenade Launcher Last Messages --------------- 00763_ Acquired Ion Engine. 00765_ R-06 Scavenger collects Heat Sink. 00767_ Acquired Ion Engine. 00771_ U-05 Engineer lays Concrete. 00771_ U-05 Engineer builds a Wall. 00772_ U-05 Engineer lays Concrete. 00775_ U-05 Engineer builds a Door. 00801_ Connecting with Terminal... 00801_ ALERT: Suspicious activity at Terminal M001. Dispatching Investigation squad. 00841_ Acquired Hcp. Matter Pod. 00844_ Connecting with Terminal... >>Alert(Purge) Purged threat record, alert level lowered. 00932_ Connecting with Terminal... >>Index(Recycling Units) Found 2 recycling units. Downloaded coordinate data. 00944_ W-16 Scout sends out distress signal. 00949_ G-34 Mercenary destroyed. Map ----- +----------------------------------------------------+ | | | | | | | | | | | | | | | | | | | | | | | ????????????????????????##############????? | | ????????????????????????# #????? | | ????????????????????????# """" """" #????? | | ????????????????????????# """" """" #????? | | ?????????????????######## """" """" #????? | | ??#####??????????# # ^ #????? | | ??# #??????????# ###+#######+##????? | | ??# < #??????????# "" # #???????????? | | ??# #??????????# "T #???????????? | | ?? !| +??????????# "" #######???????? | | ??#%= #??????????# [* #???????? | | ??#* #??????????#####+# =% T #???????? | | ??# #????????????# = #???????? | | ??# #????????????# # #???????? | | ??# #????????????# ###@ # ! #???????? | | ??# #????????????# #?# # #?#?????? | | ??# #????????????+ #?# ####+### ##????? | | ??#= #????????????# #?# """ #????? | | ??#%! #?????##???### ### "T" #????? | | ### ####### #### ## ####+#####? | | ## # #? | | ## == ## + """ ! !#? | | ?# T #########/ # ## """ # """ #? | | ?# #???# ####### """ !# """ #? | | ?# #???# #??# """ # #? | | ?## ##???# #### """ # """ ""#? | | ??# #????# + # """ Y"#? | | ??# #????# ##### # """ ""#? | | ??# #????# #???# u""" # #? | | ### +????########???# """ ##########? | | / # #???????????????# """ #?????????? | | # #???????????????# """ #?????????? | | ### #???????????????# #?????????? | | " #?# #???????????????# #?????????? | | " #?# #???????????????# """ #?????????? | | " #?# #???###########?# """ #?????????? | | #?#^##### #?# """ #?????????? | | #+### # ! #?# """ #?????????? | | # [! """ ### #####?????? | +----------------------------------------------------+ Best States ------------- Heat Dissipation 25 Energy Generation 14 Energy Capacity 250 Matter Stores 290 Matter Capacity 300 Sight Range 16 Terrain Scan Density 10 Evasion (%) 40 Item Schematics ----------------- None Robot Schematics ------------------ None Fabricated ------------ Nothing Alien Tech Used ----------------- None Achievements -------------- None Challenges ------------ None Game ------ Seed InsulatedIonicCompactor Manual? 0 Play Time 00:08:36 Cumulative 152.9 hours Start 2024.05.06 @ 13:14:16 End 2024.05.06 @ 13:25:06 Sessions 1 Manual Loads 0 Difficulty Rogue Special Mode None Game No. 307 Rogue 307 Adventurer 0 Explorer 0 Win Type - Total 0 Types 0/0/0/0/0/0/0/0/0 Lore% 38 Gallery% 58 Achievement% 42 Wizard Run 0 Options --------- Layout 0 ASCII 0 Keyboard 1 Movement Numpad Keybinds 0 Fullscreen 2 Font 18/X11 Map View 76x50 Zoom Use 0% Tactical HUD 1 Map Filters NONE Filters NONE Steam 1 RUN: 87fc4e00-4d5d-42c3-b5fa-0d51ce4ba45f